fUST/lending_fUST_20240824
["ID","MTS","AMOUNT","RATE_DAILY","PERIOD"]
[335770192,1724483468093,-178.124472,0.00014246,2]
[335770193,1724483468103,-178.124472,0.00014246,2]
[335770194,1724483468114,-955.53,0.00014246,2]
[335770195,1724483468123,-500.0,0.00014246,2]
[335770196,1724483468133,-2185.53,0.00014246,2]
[335770197,1724483468142,-824.18,0.00014246,2]
[335770198,1724483468152,-3284.094567,0.00014246,2]
[335770199,1724483468161,-1575.11223645,0.00014246,2]
[335770200,1724483469722,-481.64742389,0.00013698,2]
[335770201,1724483470035,289.46,0.00010959,2]
[335770202,1724483472159,241.21,0.00010959,2]
[335770203,1724483473791,201.01,0.00010959,2]
[335770204,1724483479464,167.51,0.00010959,2]
[335770205,1724483489780,837.57,0.00010959,2]
[335770210,1724483548021,3332.19467507,0.00010959,2]
[335770221,1724483759853,160.0,0.00015423,31]
[335770222,1724483760127,160.0,0.00015395,30]
[335770249,1724484425145,-300.0,0.00013597,2]
[335770250,1724484425166,-584.04439552,0.00013598,2]
[335770251,1724484425188,-2063.80691196,0.00013598,2]
[335770252,1724484425209,-842.75312465,0.00013598,2]
[335770253,1724484425230,-636.0511731,0.00013598,2]
[335770254,1724484425251,-2000.0,0.00013598,2]
[335770255,1724484425272,-500.0,0.00013673,2]
[335770256,1724484425292,-500.0,0.00013673,2]
[335770257,1724484425313,-633.38595116,0.00013673,2]
[335770258,1724484425336,-500.0,0.00013673,2]
[335770259,1724484425357,-500.0,0.00013698,2]
[335770260,1724484425379,-500.0,0.00013698,2]
[335770261,1724484425400,-500.0,0.00013698,2]
[335770262,1724484425426,-500.0,0.00013698,2]
[335770263,1724484425447,-500.0,0.00013698,2]
[335770264,1724484425469,-285.39658371,0.00013698,2]
[335770265,1724484425491,-375.41398282,0.00013698,2]
[335770266,1724484425512,-211.5927313,0.00013698,2]
[335770267,1724484425533,-528.75928627,0.00013698,2]
[335770268,1724484425554,-298.66156942,0.00013698,2]
[335770269,1724484425575,-500.0,0.00013698,2]
[335770270,1724484425596,-500.0,0.00013698,2]
[335770271,1724484425618,-500.0,0.00013698,2]
[335770272,1724484425640,-713.01,0.00013698,2]
[335770273,1724484425660,-500.0,0.00013698,2]
[335770274,1724484425683,-500.0,0.00013698,2]
[335770275,1724484425707,-519.21642088,0.00013698,2]
[335770276,1724484425730,-500.0,0.00013698,2]
[335770277,1724484425751,-500.71268256,0.00013698,2]
[335770278,1724484425773,-556.67,0.00013698,2]
[335770279,1724484425793,-500.0,0.00013698,2]
[335770280,1724484425821,-500.0,0.00013698,2]
[335770281,1724484425849,-500.0,0.00013698,2]
[335770282,1724484425870,-500.0,0.00013698,2]
[335770283,1724484425893,-500.0,0.00013698,2]
[335770284,1724484425916,-500.0,0.00013698,2]
[335770285,1724484425941,-137.85217462,0.00013698,2]
[335770288,1724484436140,-500.0,0.00013673,2]
[335770289,1724484436162,-475.82782538,0.00013698,2]
[335770290,1724484436184,-534.63057297,0.00013698,2]
[335770291,1724484436204,-500.0,0.00013698,2]
[335770292,1724484436226,-500.0,0.00013698,2]
[335770293,1724484436247,-317.59539575,0.00013698,2]
[335770294,1724484436268,-1083.63923172,0.00013698,2]
[335770371,1724484632432,-300.0,0.00013599,2]
[335770372,1724484632442,-356.90878816,0.000136,2]
[335770411,1724484638600,-1679.99999971,0.000136,2]
[335770412,1724484638612,-3772.32738139,0.000136,2]
[335770413,1724484639249,-2354.14744311,0.000136,2]
[335770414,1724484639261,-6556.81942638,0.000136,2]
[335770415,1724484639270,-500.0,0.00013673,2]
[335770416,1724484639279,-500.0,0.00013673,2]
[335770417,1724484639289,-449.97377135,0.00013673,2]
[335770418,1724484639298,-500.0,0.00013673,2]
[335770419,1724484639308,-3000.0,0.0001369,2]
[335770420,1724484639317,-500.0,0.00013698,2]
[335770421,1724484639326,-187.61127283,0.00013698,2]
[335770422,1724484639335,-400.0317434,0.00013698,2]
[335770423,1724484639346,-500.0,0.00013698,2]
[335770424,1724484639355,-500.0,0.00013698,2]
[335770425,1724484639365,-500.0,0.00013698,2]
[335770426,1724484639375,-500.0,0.00013698,2]
[335770427,1724484639383,-500.0,0.00013698,2]
[335770428,1724484639393,-500.0,0.00013698,2]
[335770429,1724484639402,-500.0,0.00013698,2]
[335770430,1724484639412,-500.0,0.00013698,2]
[335770431,1724484639423,-500.0,0.00013698,2]
[335770432,1724484639432,-500.0,0.00013698,2]
[335770433,1724484639443,-500.0,0.00013698,2]
[335770434,1724484639454,-500.0,0.00013698,2]
[335770435,1724484639465,-500.0,0.00013698,2]
[335770436,1724484639475,-500.0,0.00013698,2]
[335770437,1724484639488,-500.0,0.00013698,2]
[335770438,1724484639498,-500.0,0.00013698,2]
[335770439,1724484639508,-500.0,0.00013698,2]
[335770440,1724484639517,-618.26818967,0.00013698,2]
[335770441,1724484639530,-500.0,0.00013698,2]
[335770442,1724484639540,-1009.8827415,0.00013698,2]
[335770443,1724484639552,-1009.8827415,0.00013698,2]
[335770444,1724484639563,-1009.8827415,0.00013698,2]
[335770445,1724484639572,-1009.8827415,0.00013698,2]
[335770446,1724484639582,-1009.8827415,0.00013698,2]
[335770447,1724484639593,-1009.8827415,0.00013698,2]
[335770448,1724484639603,-1009.8827415,0.00013698,2]
[335770449,1724484639615,-1009.8827415,0.00013698,2]
[335770450,1724484639627,-1009.8827415,0.00013698,2]
[335770451,1724484639638,-500.0,0.00013698,2]
[335770452,1724484639650,-500.0,0.00013698,2]
[335770453,1724484639660,-708.86,0.00013698,2]
[335770454,1724484639670,-500.0,0.00013698,2]
[335770455,1724484639683,-500.0,0.00013698,2]
[335770456,1724484639692,-500.0,0.00013698,2]
[335770457,1724484639702,-500.0,0.00013698,2]
[335770458,1724484639712,-500.0,0.00013698,2]
[335770459,1724484639721,-500.0,0.00013698,2]
[335770460,1724484639732,-500.0,0.00013698,2]
[335770461,1724484639742,-500.0,0.00013698,2]
[335770462,1724484639752,-500.0,0.00013698,2]
[335770463,1724484639763,-660.15,0.00013698,2]
[335770464,1724484639773,-884.71,0.00013698,2]
[335770465,1724484639783,-500.0,0.00013698,2]
[335770466,1724484639792,-500.0,0.00013698,2]
[335770467,1724484639802,-500.0,0.00013698,2]
[335770468,1724484639811,-953.55,0.00013698,2]
[335770469,1724484639821,-500.0,0.00013698,2]
[335770470,1724484639830,-500.0,0.00013698,2]
[335770471,1724484639839,-500.0,0.00013698,2]
[335770472,1724484639848,-500.0,0.00013698,2]
[335770473,1724484639859,-500.0,0.00013698,2]
[335770474,1724484639868,-500.0,0.00013698,2]
[335770475,1724484639878,-554.91,0.00013698,2]
[335770476,1724484639888,-500.0,0.00013698,2]
[335770477,1724484639897,-502.86105163,0.00013698,2]
[335770478,1724484639908,-500.0,0.00013698,2]
[335770479,1724484639918,-500.0,0.00013698,2]
[335770480,1724484639929,-500.0,0.00013698,2]
[335770481,1724484639939,-500.0,0.00013698,2]
[335770482,1724484639951,-500.0,0.00013698,2]
[335770483,1724484639961,-500.0,0.00013698,2]
[335770484,1724484639971,-500.0,0.00013698,2]
[335770485,1724484639980,-500.85815529,0.00013698,2]
[335770486,1724484639989,-500.0,0.00013698,2]
[335770487,1724484639999,-501.5733447,0.00013698,2]
[335770488,1724484640008,-740.08,0.00013698,2]
[335770489,1724484640017,-430.44001007,0.00013698,2]
[335770490,1724484640026,-537.11,0.00013698,2]
[335770491,1724484640036,-528.47,0.00013698,2]
[335770492,1724484640045,-500.0,0.00013698,2]
[335770493,1724484640055,-500.0,0.00013698,2]
[335770494,1724484640064,-500.0,0.00013698,2]
[335770495,1724484640073,-500.0,0.00013698,2]
[335770496,1724484640082,-150.0,0.00013698,2]
[335770497,1724484640091,-500.0,0.00013698,2]
[335770498,1724484640100,-500.0,0.00013698,2]
[335770499,1724484640109,-159.93009355,0.00013698,2]
[335770500,1724484640118,-500.0,0.00013698,2]
[335770501,1724484640128,-500.0,0.00013698,2]
[335770502,1724484640138,-532.75,0.00013698,2]
[335770503,1724484640147,-534.06379751,0.00013698,2]
[335770504,1724484640155,-500.0,0.00013698,2]
[335770505,1724484640165,-500.0,0.00013698,2]
[335770506,1724484640174,-500.0,0.00013698,2]
[335770508,1724484640184,-500.0,0.00013698,2]
[335770510,1724484640192,-500.0,0.00013698,2]
[335770512,1724484640202,-500.0,0.00013698,2]
[335770514,1724484640211,-500.0,0.00013698,2]
[335770516,1724484640220,-689.97,0.00013698,2]
[335770518,1724484640229,-500.0,0.00013698,2]
[335770519,1724484640238,-500.0,0.00013698,2]
[335770521,1724484640247,-500.0,0.00013698,2]
[335770523,1724484640256,-500.0,0.00013698,2]
[335770525,1724484640265,-500.0,0.00013698,2]
[335770527,1724484640274,-500.0,0.00013698,2]
[335770528,1724484640283,-500.18172759,0.00013698,2]
[335770530,1724484640292,-500.0,0.00013698,2]
[335770532,1724484640302,-805.95,0.00013698,2]
[335770534,1724484640311,-500.0,0.00013698,2]
[335770536,1724484640320,-500.0,0.00013698,2]
[335770538,1724484640329,-943.71,0.00013698,2]
[335770540,1724484640338,-500.0,0.00013698,2]
[335770542,1724484640347,-500.0,0.00013698,2]
[335770544,1724484640356,-500.0,0.00013698,2]
[335770546,1724484640366,-500.0,0.00013698,2]
[335770548,1724484640376,-500.0,0.00013698,2]
[335770550,1724484640388,-576.99,0.00013698,2]
[335770553,1724484640398,-500.0,0.00013698,2]
[335770555,1724484640408,-500.0,0.00013698,2]
[335770557,1724484640418,-500.0,0.00013698,2]
[335770559,1724484640427,-500.0,0.00013698,2]
[335770561,1724484640436,-500.0,0.00013698,2]
[335770563,1724484640446,-500.0,0.00013698,2]
[335770565,1724484640456,-500.0,0.00013698,2]
[335770567,1724484640465,-500.0,0.00013698,2]
[335770569,1724484640474,-500.0,0.00013698,2]
[335770571,1724484640483,-500.0,0.00013698,2]
[335770572,1724484640496,-638.25,0.00013698,2]
[335770575,1724484640506,-500.0,0.00013698,2]
[335770576,1724484640515,-500.0,0.00013698,2]
[335770578,1724484640524,-500.0,0.00013698,2]
[335770580,1724484640535,-859.2,0.00013698,2]
[335770582,1724484640544,-500.0,0.00013698,2]
[335770584,1724484640553,-500.0,0.00013698,2]
[335770586,1724484640562,-500.0,0.00013698,2]
[335770589,1724484640574,-500.0,0.00013698,2]
[335770591,1724484640584,-524.69,0.00013698,2]
[335770593,1724484640595,-500.0,0.00013698,2]
[335770595,1724484640605,-1117.25,0.00013698,2]
[335770597,1724484640615,-500.0,0.00013698,2]
[335770599,1724484640625,-503.11997067,0.00013698,2]
[335770601,1724484640634,-500.0,0.00013698,2]
[335770603,1724484640644,-500.0,0.00013698,2]
[335770605,1724484640653,-601.53,0.00013698,2]
[335770607,1724484640662,-500.0,0.00013698,2]
[335770609,1724484640671,-500.0,0.00013698,2]
[335770611,1724484640680,-500.0,0.00013698,2]
[335770613,1724484640691,-500.0,0.00013698,2]
[335770615,1724484640700,-500.0,0.00013698,2]
[335770617,1724484640710,-500.0,0.00013698,2]
[335770619,1724484640719,-500.0,0.00013698,2]
[335770621,1724484640727,-343.97804973,0.00013698,2]
[335770623,1724484640737,-500.0,0.00013698,2]
[335770625,1724484640746,-581.01,0.00013698,2]
[335770627,1724484640755,-500.0,0.00013698,2]
[335770629,1724484640765,-500.0,0.00013698,2]
[335770631,1724484640774,-1264.36,0.00013698,2]
[335770633,1724484640784,-503.35788423,0.00013698,2]
[335770635,1724484640793,-500.0,0.00013698,2]
[335770637,1724484640803,-500.0,0.00013698,2]
[335770639,1724484640813,-500.0,0.00013698,2]
[335770641,1724484640822,-500.0,0.00013698,2]
[335770643,1724484640832,-478.95369614,0.00013698,2]
[335770645,1724484640843,-500.0,0.00013698,2]
[335770647,1724484640854,-500.0,0.00013698,2]
[335770649,1724484640864,-500.0,0.00013698,2]
[335770651,1724484640874,-500.0,0.00013698,2]
[335770653,1724484640883,-824.18,0.00013698,2]
[335770655,1724484640892,-500.0,0.00013698,2]
[335770657,1724484640902,-500.11097897,0.00013698,2]
[335770659,1724484640912,-635.83,0.00013698,2]
[335770661,1724484640922,-500.0,0.00013698,2]
[335770663,1724484640931,-500.0,0.00013698,2]
[335770665,1724484640940,-449.81063824,0.00013698,2]
[335770667,1724484640950,-500.0,0.00013698,2]
[335770669,1724484640959,-305.24911577,0.00013698,2]
[335770671,1724484640969,-504.03413542,0.00013698,2]
[335770673,1724484640978,-992.94,0.00013698,2]
[335770675,1724484640988,-500.0,0.00013698,2]
[335770677,1724484640998,-566.24,0.00013698,2]
[335770679,1724484641008,-500.0,0.00013698,2]
[335770682,1724484641017,-500.0,0.00013698,2]
[335770684,1724484641027,-559.02,0.00013698,2]
[335770686,1724484641046,-500.0,0.00013698,2]
[335770688,1724484641055,-500.0,0.00013698,2]
[335770690,1724484641065,-799.71,0.00013698,2]
[335770692,1724484641075,-500.0,0.00013698,2]
[335770694,1724484641085,-500.0,0.00013698,2]
[335770696,1724484641096,-1568.65,0.00013698,2]
[335770698,1724484641106,-500.0,0.00013698,2]
[335770700,1724484641115,-500.0,0.00013698,2]
[335770702,1724484641124,-542.47,0.00013698,2]
[335770704,1724484641134,-500.0,0.00013698,2]
[335770706,1724484641143,-521.09788376,0.00013698,2]
[335770708,1724484641152,-500.0,0.00013698,2]
[335770710,1724484641161,-500.0,0.00013698,2]
[335770712,1724484641171,-500.0,0.00013698,2]
[335770714,1724484641180,-1099.68,0.00013698,2]
[335770716,1724484641190,-500.0,0.00013698,2]
[335770718,1724484641199,-942.1,0.00013698,2]
[335770719,1724484641208,-500.0,0.00013698,2]
[335770720,1724484641218,-500.0,0.00013698,2]
[335770721,1724484641230,-500.0,0.00013698,2]
[335770722,1724484641240,-1275.95,0.00013698,2]
[335770723,1724484641250,-500.0,0.00013698,2]
[335770724,1724484641259,-500.0,0.00013698,2]
[335770725,1724484641271,-500.0,0.00013698,2]
[335770726,1724484641280,-500.0,0.00013698,2]
[335770727,1724484641301,-500.0,0.00013698,2]
[335770728,1724484641311,-500.0,0.00013698,2]
[335770729,1724484641320,-500.0,0.00013698,2]
[335770730,1724484641329,-500.0,0.00013698,2]
[335770731,1724484641338,-500.0,0.00013698,2]
[335770732,1724484641347,-822.14,0.00013698,2]
[335770733,1724484641356,-500.0,0.00013698,2]
[335770734,1724484641365,-193.80537047,0.00013698,2]
[335770735,1724484641375,-500.0,0.00013698,2]
[335770736,1724484641384,-500.0,0.00013698,2]
[335770738,1724484641393,-500.0,0.00013698,2]
[335770740,1724484641402,-500.0,0.00013698,2]
[335770742,1724484641412,-500.0,0.00013698,2]
[335770744,1724484641421,-500.0,0.00013698,2]
[335770746,1724484641430,-724.2,0.00013698,2]
[335770748,1724484641439,-500.0,0.00013698,2]
[335770750,1724484641449,-500.0,0.00013698,2]
[335770752,1724484641459,-500.0,0.00013698,2]
[335770754,1724484641468,-500.0,0.00013698,2]
[335770756,1724484641478,-500.0,0.00013698,2]
[335770758,1724484641488,-500.0,0.00013698,2]
[335770760,1724484641500,-500.0,0.00013698,2]
[335770762,1724484641509,-500.0,0.00013698,2]
[335770764,1724484641519,-500.0,0.00013698,2]
[335770767,1724484641528,-501.86672795,0.00013698,2]
[335770768,1724484641537,-500.0,0.00013698,2]
[335770770,1724484641546,-500.0,0.00013698,2]
[335770773,1724484641556,-500.0,0.00013698,2]
[335770775,1724484641565,-500.0,0.00013698,2]
[335770777,1724484641574,-504.06,0.00013698,2]
[335770779,1724484641584,-500.0,0.00013698,2]
[335770781,1724484641593,-500.0,0.00013698,2]
[335770783,1724484641602,-500.0,0.00013698,2]
[335770785,1724484641612,-500.0,0.00013698,2]
[335770787,1724484641622,-717.61,0.00013698,2]
[335770789,1724484641631,-500.0,0.00013698,2]
[335770791,1724484641641,-500.0,0.00013698,2]
[335770793,1724484641650,-567.4,0.00013698,2]
[335770795,1724484641659,-500.0,0.00013698,2]
[335770797,1724484641669,-500.0,0.00013698,2]
[335770799,1724484641678,-500.0,0.00013698,2]
[335770801,1724484641688,-571.72,0.00013698,2]
[335770803,1724484641697,-573.9,0.00013698,2]
[335770805,1724484641706,-500.0,0.00013698,2]
[335770807,1724484641716,-500.0,0.00013698,2]
[335770809,1724484641725,-500.0,0.00013698,2]
[335770811,1724484641735,-500.0,0.00013698,2]
[335770813,1724484641745,-500.0,0.00013698,2]
[335770815,1724484641754,-500.0,0.00013698,2]
[335770817,1724484641763,-500.0,0.00013698,2]
[335770819,1724484641773,-500.0,0.00013698,2]
[335770821,1724484641782,-500.0,0.00013698,2]
[335770823,1724484641795,-500.0,0.00013698,2]
[335770825,1724484641804,-864.02,0.00013698,2]
[335770827,1724484641814,-500.0,0.00013698,2]
[335770829,1724484641823,-913.68,0.00013698,2]
[335770831,1724484641833,-500.0,0.00013698,2]
[335770833,1724484641842,-500.0,0.00013698,2]
[335770836,1724484641852,-500.0,0.00013698,2]
[335770837,1724484641861,-500.0,0.00013698,2]
[335770839,1724484641871,-705.74,0.00013698,2]
[335770841,1724484641880,-500.0,0.00013698,2]
[335770843,1724484641889,-524.10641745,0.00013698,2]
[335770845,1724484641899,-233.35325357,0.00013698,2]
[335770847,1724484641908,-500.0,0.00013698,2]
[335770849,1724484641917,-636.67,0.00013698,2]
[335770852,1724484641927,-500.0,0.00013698,2]
[335770854,1724484641935,-821.99,0.00013698,2]
[335770856,1724484641945,-500.0,0.00013698,2]
[335770858,1724484641954,-315.43926399,0.00013698,2]
[335770860,1724484641963,-500.0,0.00013698,2]
[335770862,1724484641972,-555.96,0.00013698,2]
[335770864,1724484641981,-500.0,0.00013698,2]
[335770866,1724484641990,-500.0,0.00013698,2]
[335770868,1724484642000,-500.0,0.00013698,2]
[335770870,1724484642009,-500.0,0.00013698,2]
[335770872,1724484642020,-151.81298738,0.00013698,2]
[335770874,1724484642029,-500.0,0.00013698,2]
[335770876,1724484642040,-500.0,0.00013698,2]
[335770878,1724484642050,-500.0,0.00013698,2]
[335770880,1724484642060,-500.0,0.00013698,2]
[335770882,1724484642069,-500.51934936,0.00013698,2]
[335770902,1724484642239,-1087.91,0.00013698,2]
[335770904,1724484642249,-500.0,0.00013698,2]
[335770906,1724484642259,-500.0,0.00013698,2]
[335770907,1724484642268,-500.0,0.00013698,2]
[335770908,1724484642278,-286.88081606,0.00013698,2]
[335770909,1724484642288,-384.31784247,0.00013698,2]
[335770911,1724484642298,-500.0,0.00013698,2]
[335770912,1724484642307,-500.0,0.00013698,2]
[335770913,1724484642316,-2422.02,0.00013698,2]
[335770915,1724484642325,-536.24,0.00013698,2]
[335770916,1724484642334,-500.43012477,0.00013698,2]
[335770917,1724484642344,-260.0,0.00013698,2]
[335770918,1724484642354,-258.0,0.00013698,2]
[335770919,1724484642364,-500.0,0.00013698,2]
[335770920,1724484642373,-1081.36,0.00013698,2]
[335770921,1724484642383,-654.21,0.00013698,2]
[335770922,1724484642392,-500.0,0.00013698,2]
[335770923,1724484642402,-500.0,0.00013698,2]
[335770924,1724484642411,-522.05021628,0.00013698,2]
[335770925,1724484642422,-500.0,0.00013698,2]
[335770926,1724484642432,-1081.07,0.00013698,2]
[335770927,1724484642441,-3010.56,0.00013698,2]
[335770928,1724484642451,-500.0,0.00013698,2]
[335770929,1724484642460,-500.0,0.00013698,2]
[335770930,1724484642470,-500.0,0.00013698,2]
[335770931,1724484642479,-2764.61,0.00013698,2]
[335770932,1724484642490,-500.0,0.00013698,2]
[335770933,1724484642501,-500.0,0.00013698,2]
[335770934,1724484642511,-500.0,0.00013698,2]
[335770935,1724484642520,-2104.39,0.00013698,2]
[335770936,1724484642531,-500.0,0.00013698,2]
[335770937,1724484642544,-767.33,0.00013698,2]
[335770938,1724484642553,-767.33,0.00013698,2]
[335770939,1724484642563,-519.67,0.00013698,2]
[335770940,1724484642574,-767.33,0.00013698,2]
[335770941,1724484642583,-767.33,0.00013698,2]
[335770942,1724484642594,-767.33,0.00013698,2]
[335770943,1724484642604,-767.33,0.00013698,2]
[335770944,1724484642613,-767.33,0.00013698,2]
[335770945,1724484642623,-767.33,0.00013698,2]
[335770946,1724484642632,-767.33,0.00013698,2]
[335770947,1724484642641,-767.33,0.00013698,2]
[335770948,1724484642651,-767.33,0.00013698,2]
[335770949,1724484642661,-767.33,0.00013698,2]
[335770950,1724484642671,-767.33,0.00013698,2]
[335770951,1724484642680,-767.33,0.00013698,2]
[335770952,1724484642689,-500.0,0.00013698,2]
[335770953,1724484642698,-500.0,0.00013698,2]
[335770954,1724484642708,-500.0,0.00013698,2]
[335770955,1724484642717,-1060.76,0.00013698,2]
[335770956,1724484642727,-714.61,0.00013698,2]
[335770957,1724484642736,-500.0,0.00013698,2]
[335770958,1724484642745,-500.0,0.00013698,2]
[335770959,1724484642754,-355.44969118,0.00013698,2]
[335770960,1724484642763,-500.0,0.00013698,2]
[335770961,1724484642772,-500.0,0.00013698,2]
[335770962,1724484642781,-568.88,0.00013698,2]
[335770963,1724484642791,-500.0,0.00013698,2]
[335770964,1724484642800,-519.21250555,0.00013698,2]
[335770965,1724484642809,-1180.85,0.00013698,2]
[335770966,1724484642818,-761.62,0.00013698,2]
[335770967,1724484642827,-500.0,0.00013698,2]
[335770968,1724484642836,-500.0,0.00013698,2]
[335770969,1724484642845,-1276.52,0.00013698,2]
[335770970,1724484642854,-500.0,0.00013698,2]
[335770971,1724484642863,-717.65,0.00013698,2]
[335770972,1724484642872,-500.0,0.00013698,2]
[335770973,1724484642881,-500.0,0.00013698,2]
[335770974,1724484642890,-500.0,0.00013698,2]
[335770975,1724484642899,-500.0,0.00013698,2]
[335770976,1724484642908,-500.0,0.00013698,2]
[335770977,1724484642917,-1069.52,0.00013698,2]
[335770978,1724484642926,-500.0,0.00013698,2]
[335770979,1724484642935,-571.89,0.00013698,2]
[335770980,1724484642944,-500.0,0.00013698,2]
[335770981,1724484642953,-500.0,0.00013698,2]
[335770982,1724484642962,-500.0,0.00013698,2]
[335770983,1724484642971,-534.13155248,0.00013698,2]
[335770984,1724484642981,-500.0,0.00013698,2]
[335770985,1724484642991,-500.0,0.00013698,2]
[335770986,1724484643000,-500.0,0.00013698,2]
[335770987,1724484643010,-500.0,0.00013698,2]
[335770988,1724484643019,-572.58,0.00013698,2]
[335770989,1724484643029,-967.87,0.00013698,2]
[335770990,1724484643040,-500.0,0.00013698,2]
[335770991,1724484643050,-511.92466686,0.00013698,2]
[335770992,1724484643059,-570.74,0.00013698,2]
[335770993,1724484643070,-500.0,0.00013698,2]
[335770994,1724484643080,-500.0,0.00013698,2]
[335770995,1724484643090,-500.0,0.00013698,2]
[335770996,1724484643100,-500.0,0.00013698,2]
[335770998,1724484643111,-500.0,0.00013698,2]
[335771000,1724484643120,-565.21,0.00013698,2]
[335771001,1724484643129,-1312.79,0.00013698,2]
[335771002,1724484643139,-500.0,0.00013698,2]
[335771003,1724484643149,-500.0,0.00013698,2]
[335771004,1724484643159,-500.0,0.00013698,2]
[335771005,1724484643169,-998.8,0.00013698,2]
[335771006,1724484643179,-500.0,0.00013698,2]
[335771007,1724484643188,-451.02923329,0.00013698,2]
[335771008,1724484643197,-500.0,0.00013698,2]
[335771009,1724484643207,-2016.11,0.00013698,2]
[335771010,1724484643216,-500.0,0.00013698,2]
[335771011,1724484643227,-504.91863653,0.00013698,2]
[335771012,1724484643236,-1428.42,0.00013698,2]
[335771013,1724484643245,-746.43,0.00013698,2]
[335771014,1724484643255,-500.0,0.00013698,2]
[335771015,1724484643264,-500.0,0.00013698,2]
[335771016,1724484643273,-612.44072845,0.00013698,2]
[335771017,1724484643284,-500.0,0.00013698,2]
[335771018,1724484643293,-691.98,0.00013698,2]
[335771019,1724484643302,-500.0,0.00013698,2]
[335771020,1724484643311,-500.0,0.00013698,2]
[335771021,1724484643320,-500.0,0.00013698,2]
[335771022,1724484643330,-500.0,0.00013698,2]
[335771023,1724484643339,-500.0,0.00013698,2]
[335771024,1724484643349,-500.0,0.00013698,2]
[335771025,1724484643359,-500.0,0.00013698,2]
[335771026,1724484643368,-500.0,0.00013698,2]
[335771027,1724484643378,-518.31460666,0.00013698,2]
[335771028,1724484643388,-1196.77,0.00013698,2]
[335771029,1724484643398,-1525.1,0.00013698,2]
[335771030,1724484643407,-714.57,0.00013698,2]
[335771031,1724484643417,-500.0,0.00013698,2]
[335771032,1724484643426,-500.0,0.00013698,2]
[335771033,1724484643436,-500.0,0.00013698,2]
[335771034,1724484643445,-500.0,0.00013698,2]
[335771035,1724484643456,-500.0,0.00013698,2]
[335771036,1724484643466,-500.0,0.00013698,2]
[335771037,1724484643475,-500.0,0.00013698,2]
[335771038,1724484643485,-500.0,0.00013698,2]
[335771039,1724484643497,-500.0,0.00013698,2]
[335771040,1724484643507,-500.0,0.00013698,2]
[335771041,1724484643516,-500.0,0.00013698,2]
[335771042,1724484643525,-500.0,0.00013698,2]
[335771043,1724484643537,-500.0,0.00013698,2]
[335771044,1724484643547,-500.0,0.00013698,2]
[335771045,1724484643556,-500.0,0.00013698,2]
[335771046,1724484643566,-500.0,0.00013698,2]
[335771047,1724484643575,-500.0,0.00013698,2]
[335771048,1724484643585,-447.60060409,0.00013698,2]
[335771049,1724484643594,-500.0,0.00013698,2]
[335771050,1724484643604,-1800.54,0.00013698,2]
[335771051,1724484643613,-754.42,0.00013698,2]
[335771052,1724484643623,-500.0,0.00013698,2]